fUST/lending_fUST_20250620
["ID","MTS","AMOUNT","RATE_DAILY","PERIOD"]
[366742842,1750427444165,-972.0,0.0002082,2]
[366742844,1750427444175,-972.0,0.0002082,2]
[366742846,1750427444186,-972.0,0.0002082,2]
[366742848,1750427444199,-972.0,0.0002082,2]
[366742850,1750427444210,-972.00821369,0.0002082,2]
[366742852,1750427444220,-313.0,0.0002082,2]
[366742855,1750427444231,-151.0,0.00020827,2]
[366742857,1750427444242,-152.893641,0.00020827,2]
[366742859,1750427444252,-151.0,0.00020827,2]
[366742861,1750427444263,-317.95,0.00020827,2]
[366742863,1750427444273,-317.95,0.00020827,2]
[366742865,1750427444284,-151.0,0.00020827,2]
[366742867,1750427444293,-1448.228023,0.00020827,2]
[366742869,1750427444304,-1448.228023,0.00020827,2]
[366742871,1750427444314,-162.821446,0.00020835,2]
[366742873,1750427444324,-162.821446,0.00020835,2]
[366742875,1750427444336,-151.0,0.00020836,2]
[366742877,1750427444346,-500.0,0.00020844,2]
[366742879,1750427444356,-151.0,0.00020845,2]
[366742881,1750427444366,-151.0,0.00020845,2]
[366742883,1750427444376,-151.0,0.00020845,2]
[366742885,1750427444386,-151.0,0.00020845,2]
[366742887,1750427444396,-305.395772,0.00020845,2]
[366742889,1750427444405,-305.395772,0.00020845,2]
[366742891,1750427444415,-500.0,0.00020849,2]
[366742893,1750427444425,-151.74543489,0.00020849,2]
[366742895,1750427444435,-151.0,0.00020849,2]
[366742897,1750427444445,-151.0,0.00020849,2]
[366742899,1750427444455,-151.0,0.00020849,2]
[366742901,1750427444465,-151.68649943,0.00020849,2]
[366742903,1750427444475,-151.0,0.00020849,2]
[366742905,1750427444485,-214.21196469,0.00020849,2]
[366742907,1750427444496,-500.0,0.00020849,2]
[366742910,1750427444510,-151.0,0.00020849,2]
[366742912,1750427444520,-208.75673084,0.00020849,2]
[366742914,1750427444529,-155.16144177,0.00020849,2]
[366742918,1750427444539,-267.30678866,0.00020849,2]
[366742920,1750427444550,-500.0,0.00020849,2]
[366742922,1750427444561,-201.81057229,0.00020849,2]
[366742924,1750427444571,-151.0,0.00020849,2]
[366742926,1750427444581,-500.0,0.00020868,2]
[366742928,1750427444591,-247.75092905,0.00020873,2]
[366742930,1750427444602,-500.0,0.00020873,2]
[366742932,1750427444612,-500.0,0.00020873,2]
[366742934,1750427444622,-500.0,0.00020873,2]
[366742936,1750427444633,-503.26439218,0.00020873,2]
[366742938,1750427444643,-500.0,0.00020873,2]
[366742940,1750427444653,-500.0,0.00020876,2]
[366742942,1750427444664,-151.88304457,0.00020876,2]
[366742944,1750427444673,-500.0,0.00020876,2]
[366742947,1750427444683,-642.72022629,0.00020876,2]
[366742950,1750427444694,-151.0,0.00020876,2]
[366742952,1750427444704,-2389.21,0.000209,2]
[366742954,1750427444715,-500.0,0.00020904,2]
[366742956,1750427444725,-167.63597858,0.00020904,2]
[366742958,1750427444735,-151.0,0.00020904,2]
[366742960,1750427444746,-151.0,0.00020904,2]
[366742962,1750427444756,-151.0,0.00020904,2]
[366742964,1750427444767,-151.0,0.00020904,2]
[366742966,1750427444780,-500.0,0.00020931,2]
[366742968,1750427444790,-151.0,0.00020931,2]
[366742970,1750427444800,-500.0,0.00020959,2]
[366742972,1750427444810,-227.28743474,0.00020959,2]
[366742974,1750427444820,-510.72823039,0.00020986,2]
[366742976,1750427444831,-1089.0,0.00021026,2]
[366742978,1750427444841,-1089.0,0.0002104,2]
[366742980,1750427444852,-500.0,0.00021073,2]
[366742982,1750427444861,-500.0,0.00021073,2]
[366742985,1750427444872,-460.0,0.00021087,2]
[366742987,1750427444883,-460.0,0.00021087,2]
[366742989,1750427444893,-460.0,0.00021087,2]
[366742991,1750427444904,-460.0,0.00021088,2]
[366742993,1750427444915,-424.26638302,0.00021088,2]
[366742995,1750427444925,-460.0,0.00021088,2]
[366742997,1750427444935,-460.0,0.00021088,2]
[366742999,1750427444946,-460.0,0.00021088,2]
[366743001,1750427444956,-460.0,0.00021088,2]
[366743003,1750427444967,-1224.49,0.00021088,2]
[366743005,1750427444976,-2179.71,0.00021088,2]
[366743007,1750427444986,-460.0,0.00021088,2]
[366743009,1750427444996,-460.0,0.00021088,2]
[366743011,1750427445007,-2059.44,0.00021088,2]
[366743013,1750427445017,-610.98,0.00021088,2]
[366743015,1750427445027,-2522.63,0.00021088,2]
[366743018,1750427445038,-460.0,0.00021088,2]
[366743020,1750427445048,-460.0,0.00021088,2]
[366743022,1750427445058,-2208.96,0.00021088,2]
[366743024,1750427445068,-2928.49,0.00021088,2]
[366743026,1750427445078,-460.0,0.00021088,2]
[366743028,1750427445088,-460.0,0.00021089,2]
[366743030,1750427445097,-460.0,0.00021089,2]
[366743032,1750427445107,-676.38,0.00021089,2]
[366743034,1750427445117,-157.70803184,0.00021089,2]
[366743036,1750427445127,-460.0,0.00021089,2]
[366743038,1750427445137,-460.0,0.00021089,2]
[366743040,1750427445148,-460.0,0.00021089,2]
[366743042,1750427445160,-460.0,0.00021089,2]
[366743044,1750427445170,-460.0,0.00021089,2]
[366743046,1750427445180,-460.0,0.00021089,2]
[366743048,1750427445191,-460.0,0.00021089,2]
[366743050,1750427445202,-460.0,0.00021089,2]
[366743052,1750427445212,-460.0,0.00021089,2]
[366743054,1750427445222,-460.0,0.00021089,2]
[366743056,1750427445232,-460.0,0.00021089,2]
[366743058,1750427445243,-485.22,0.00021089,2]
[366743060,1750427445253,-460.0,0.00021089,2]
[366743062,1750427445264,-524.7,0.00021089,2]
[366743064,1750427445274,-460.0,0.00021089,2]
[366743066,1750427445283,-460.0,0.00021089,2]
[366743068,1750427445293,-460.0,0.00021089,2]
[366743070,1750427445303,-460.0,0.00021089,2]
[366743071,1750427445314,-460.0,0.00021089,2]
[366743072,1750427445324,-460.0,0.00021089,2]
[366743073,1750427445335,-460.0,0.00021089,2]
[366743074,1750427445344,-2708.29,0.00021089,2]
[366743075,1750427445354,-901.59,0.00021089,2]
[366743076,1750427445363,-460.0,0.00021089,2]
[366743077,1750427445374,-712.98,0.00021089,2]
[366743079,1750427445384,-1660.52,0.00021089,2]
[366743080,1750427445393,-463.34,0.00021089,2]
[366743083,1750427445404,-513.53879987,0.00021089,2]
[366743084,1750427445414,-559.54,0.00021089,2]
[366743086,1750427445425,-1371.39,0.00021089,2]
[366743088,1750427445435,-581.38,0.00021089,2]
[366743090,1750427445444,-151.0,0.00021089,2]
[366743091,1750427445454,-460.0,0.00021089,2]
[366743092,1750427445464,-525.7,0.00021089,2]
[366743093,1750427445474,-581.88,0.00021089,2]
[366743094,1750427445484,-460.0,0.00021089,2]
[366743095,1750427445495,-460.0,0.00021089,2]
[366743096,1750427445506,-1289.87,0.00021089,2]
[366743097,1750427445516,-546.99,0.00021089,2]
[366743098,1750427445526,-460.0,0.00021089,2]
[366743099,1750427445535,-151.0,0.00021089,2]
[366743100,1750427445546,-460.0,0.00021089,2]
[366743101,1750427445556,-460.0,0.00021089,2]
[366743102,1750427445566,-151.0,0.00021089,2]
[366743103,1750427445577,-460.0,0.00021089,2]
[366743104,1750427445587,-151.0,0.00021089,2]
[366743105,1750427445597,-151.0,0.00021089,2]
[366743106,1750427445607,-1352.25,0.00021089,2]
[366743107,1750427445617,-460.0,0.00021089,2]
[366743108,1750427445628,-214.427779,0.00021089,2]
[366743109,1750427445638,-879.89,0.00021089,2]
[366743110,1750427445648,-460.0,0.00021089,2]
[366743111,1750427445658,-460.0,0.00021089,2]
[366743112,1750427445669,-3178.91,0.00021089,2]
[366743113,1750427445691,-151.0,0.00021089,2]
[366743114,1750427445702,-460.0,0.00021089,2]
[366743115,1750427445713,-151.0,0.00021089,2]
[366743116,1750427445723,-151.358761,0.00021089,2]
[366743117,1750427445733,-1018.97,0.00021089,2]
[366743118,1750427445744,-460.0,0.00021089,2]
[366743119,1750427445753,-235.977306,0.00021089,2]
[366743120,1750427445764,-460.0,0.00021089,2]
[366743121,1750427445774,-235.977306,0.00021089,2]
[366743122,1750427445785,-370.72123112,0.0002109,2]
[366743123,1750427445795,-460.0,0.0002109,2]
[366743124,1750427445806,-460.0,0.0002109,2]
[366743125,1750427445816,-977.92,0.0002109,2]
[366743126,1750427445826,-465.04312893,0.0002109,2]
[366743127,1750427445837,-1220.1,0.0002109,2]
[366743128,1750427445847,-4050.29,0.0002109,2]
[366743129,1750427445857,-549.05,0.0002109,2]
[366743130,1750427445867,-461.37,0.0002109,2]
[366743132,1750427445877,-1355.77,0.0002109,2]
[366743133,1750427445888,-577.21791074,0.0002109,2]
[366743134,1750427445898,-460.0,0.0002109,2]
[366743135,1750427445909,-695.98,0.0002109,2]
[366743136,1750427445919,-460.0,0.0002109,2]
[366743138,1750427445931,-460.0,0.0002109,2]
[366743140,1750427445940,-460.0,0.0002109,2]
[366743142,1750427445951,-534.83,0.0002109,2]
[366743144,1750427445961,-151.0,0.0002109,2]
[366743146,1750427445971,-474.25,0.0002109,2]
[366743148,1750427445982,-988.61,0.0002109,2]
[366743150,1750427445992,-460.0,0.0002109,2]
[366743152,1750427446003,-557.66,0.0002109,2]
[366743154,1750427446013,-323.16320344,0.0002109,2]
[366743156,1750427446023,-460.0,0.0002109,2]
[366743159,1750427446033,-1100.94,0.0002109,2]
[366743161,1750427446044,-460.0,0.0002109,2]
[366743163,1750427446054,-460.0,0.0002109,2]
[366743165,1750427446069,-460.0,0.0002109,2]
[366743167,1750427446081,-460.0,0.00021091,2]
[366743169,1750427446091,-460.0,0.00021091,2]
[366743171,1750427446101,-151.0,0.00021091,2]
[366743173,1750427446112,-1106.95,0.00021091,2]
[366743175,1750427446124,-460.0,0.00021091,2]
[366743177,1750427446134,-921.3,0.00021091,2]
[366743179,1750427446144,-460.0,0.00021091,2]
[366743181,1750427446156,-151.0,0.00021091,2]
[366743184,1750427446168,-458.17410885,0.00021092,2]
[366743186,1750427446178,-460.0,0.00021092,2]
[366743188,1750427446188,-151.0,0.00021092,2]
[366743190,1750427446199,-460.0,0.00021092,2]
[366743192,1750427446209,-460.0,0.00021092,2]
[366743194,1750427446219,-460.0,0.00021092,2]
[366743196,1750427446229,-460.0,0.00021092,2]
[366743197,1750427446242,-460.0,0.00021092,2]
[366743199,1750427446252,-460.0,0.00021092,2]
[366743201,1750427446262,-460.0,0.00021092,2]
[366743203,1750427446272,-460.0,0.00021092,2]
[366743205,1750427446282,-460.0,0.00021092,2]
[366743207,1750427446292,-151.64582,0.00021092,2]
[366743210,1750427446306,-500.0,0.00021092,2]
[366743212,1750427446318,-389.7869222,0.00021093,2]
[366743214,1750427446328,-460.0,0.00021093,2]
[366743216,1750427446338,-571.3782252,0.00021093,2]
[366743218,1750427446348,-460.0,0.00021093,2]
[366743220,1750427446358,-460.0,0.00021093,2]
[366743222,1750427446368,-460.0,0.00021093,2]
[366743224,1750427446378,-460.0,0.00021093,2]
[366743226,1750427446388,-460.0,0.00021093,2]
[366743228,1750427446398,-421.41443926,0.00021093,2]
[366743230,1750427446408,-391.55675804,0.00021093,2]
[366743232,1750427446418,-511.96205681,0.00021093,2]
[366743234,1750427446430,-460.0,0.00021093,2]
[366743236,1750427446441,-460.0,0.00021093,2]
[366743238,1750427446451,-460.0,0.00021093,2]
[366743239,1750427446461,-250.0,0.00021093,2]
[366743241,1750427446471,-460.0,0.00021093,2]
[366743243,1750427446481,-460.0,0.00021093,2]
[366743245,1750427446491,-333.48584117,0.00021093,2]
[366743248,1750427446501,-460.0,0.00021093,2]
[366743250,1750427446512,-286.52231408,0.00021093,2]
[366743252,1750427446523,-151.0,0.00021094,2]
[366743254,1750427446533,-151.0,0.00021094,2]
[366743256,1750427446543,-151.0,0.00021094,2]
[366743258,1750427446553,-151.0,0.00021094,2]
[366743260,1750427446563,-151.0,0.00021094,2]
[366743262,1750427446574,-317.95,0.00021094,2]
[366743264,1750427446585,-317.95,0.00021094,2]
[366743266,1750427446595,-151.0,0.00021094,2]
[366743268,1750427446605,-1448.228023,0.00021094,2]
[366743279,1750427446696,-1448.228023,0.00021094,2]
[366743281,1750427446706,-162.821446,0.00021094,2]
[366743283,1750427446715,-162.821446,0.00021094,2]
[366743285,1750427446726,-19926.98821902,0.000211,2]
[366743287,1750427446735,-151.0,0.00021108,2]
[366743289,1750427446744,-151.0,0.00021108,2]
[366743291,1750427446754,-151.0,0.00021108,2]
[366743293,1750427446764,-151.0,0.00021108,2]
[366743294,1750427446774,-305.395772,0.00021108,2]
[366743295,1750427446784,-305.395772,0.00021108,2]
[366743296,1750427446794,-151.0,0.00021109,2]
[366743297,1750427446805,-151.0,0.00021109,2]
[366743298,1750427446815,-151.0,0.00021109,2]
[366743299,1750427446825,-151.0,0.00021109,2]
[366743300,1750427446835,-152.60008,0.00021109,2]
[366743301,1750427446844,-155.290581,0.00021109,2]
[366743302,1750427446854,-151.0,0.00021109,2]
[366743303,1750427446863,-151.0,0.0002111,2]
[366743304,1750427446873,-151.0,0.0002111,2]
[366743305,1750427446882,-151.0,0.0002112,2]
[366743306,1750427446894,-151.0,0.0002112,2]
[366743307,1750427446904,-151.0,0.0002112,2]
[366743308,1750427446913,-165.179298,0.0002112,2]
[366743309,1750427446923,-151.0,0.0002112,2]
[366743310,1750427446933,-151.0,0.0002112,2]
[366743311,1750427446943,-1000.0,0.00021121,2]
[366743312,1750427446953,-1000.0,0.00021121,2]
[366743313,1750427446962,-1000.0,0.00021121,2]
[366743315,1750427446972,-1010.98661922,0.00021121,2]
[366743317,1750427446981,-1000.0,0.00021121,2]
[366743319,1750427446990,-151.0,0.00021121,2]
[366743321,1750427447000,-151.0,0.00021121,2]
[366743323,1750427447010,-151.0,0.00021121,2]
[366743325,1750427447020,-200.52773835,0.00021199,2]
[366743327,1750427447029,-85554.53,0.000212,2]
[366743329,1750427447038,-154.696438,0.000212,2]
[366743331,1750427447048,-152.538025,0.000212,2]
[366743333,1750427447058,-151.641305,0.000212,2]
[366743335,1750427447068,-151.0,0.000212,2]
[366743337,1750427447077,-151.924719,0.000212,2]
[366743339,1750427447087,-151.0,0.000212,2]
[366743341,1750427447096,-151.000001,0.000212,2]
[366743343,1750427447106,-151.0,0.000212,2]
[366743345,1750427447116,-151.0,0.000212,2]
[366743347,1750427447127,-291.129484,0.000212,2]
[366743349,1750427447136,-291.129484,0.000212,2]
[366743351,1750427447146,-151.0,0.000212,2]
[366743353,1750427447156,-378.478759,0.000212,2]
[366743355,1750427447168,-378.478759,0.000212,2]
[366743357,1750427447178,-151.0,0.000212,2]
[366743359,1750427447188,-850.0,0.000212,3]
[366743361,1750427447199,-151.0,0.000212,2]
[366743363,1750427447210,-151.0,0.000212,2]
[366743365,1750427447219,-151.0,0.000212,2]
[366743367,1750427447229,-151.0,0.000212,2]
[366743369,1750427447239,-151.0,0.000212,2]
[366743371,1750427447250,-152.907855,0.000212,2]
[366743373,1750427447260,-317.95,0.000212,2]
[366743375,1750427447270,-317.95,0.000212,2]
[366743377,1750427447281,-151.0,0.000212,2]
[366743379,1750427447291,-151.0,0.000212,2]
[366743381,1750427447301,-151.0,0.000212,2]
[366743383,1750427447311,-1448.228023,0.000212,2]
[366743385,1750427447321,-1448.228023,0.000212,2]
[366743387,1750427447332,-151.0,0.000212,2]
[366743389,1750427447342,-151.0,0.000212,2]
[366743391,1750427447351,-305.395772,0.000212,2]
[366743393,1750427447360,-305.395772,0.000212,2]
[366743394,1750427447370,-151.0,0.000212,2]
[366743396,1750427447380,-1083.68914,0.000212,2]
[366743398,1750427447389,-1083.68914,0.000212,2]
[366743400,1750427447399,-151.0,0.000212,2]
[366743401,1750427447408,-151.0,0.000212,2]
[366743403,1750427447418,-151.0,0.000212,2]
[366743405,1750427447428,-151.0,0.000212,2]
[366743407,1750427447437,-172.170783,0.000212,2]
[366743409,1750427447448,-151.0,0.000212,2]
[366743411,1750427447457,-151.0,0.000212,2]
[366743413,1750427447466,-151.0,0.000212,2]
[366743415,1750427447476,-301.885905,0.000212,2]
[366743417,1750427447485,-235.977306,0.000212,2]
[366743419,1750427447495,-235.977306,0.000212,2]
[366743421,1750427447505,-151.0,0.000213,4]
[366743423,1750427447515,-5000.0,0.00021351,2]
[366743424,1750427447525,-162.821446,0.00021354,2]
[366743426,1750427447534,-162.821446,0.00021354,2]
[366743428,1750427447543,-460.0,0.00021361,2]
[366743430,1750427447553,-460.0,0.00021361,2]
[366743432,1750427447563,-460.0,0.00021361,2]
[366743434,1750427447572,-460.0,0.00021362,2]
[366743436,1750427447582,-460.0,0.00021362,2]
[366743438,1750427447591,-460.0,0.00021362,2]
[366743440,1750427447601,-460.0,0.00021362,2]
[366743442,1750427447611,-460.0,0.00021362,2]
[366743444,1750427447620,-1224.49,0.00021362,2]
[366743446,1750427447630,-2179.71,0.00021362,2]
[366743447,1750427447639,-171.60045761,0.00021362,2]
[366743449,1750427447650,-460.0,0.00021362,2]
[366743451,1750427447661,-2059.44,0.00021362,2]
[366743453,1750427447671,-610.98,0.00021362,2]
[366743455,1750427447681,-2522.63,0.00021362,2]
[366743457,1750427447691,-460.0,0.00021362,2]
[366743459,1750427447701,-460.0,0.00021362,2]
[366743461,1750427447713,-2208.96,0.00021362,2]
[366743463,1750427447722,-2928.49,0.00021362,2]
[366743465,1750427447732,-460.0,0.00021362,2]
[366743467,1750427447742,-460.0,0.00021363,2]
[366743469,1750427447752,-460.0,0.00021363,2]
[366743471,1750427447763,-676.38,0.00021363,2]
[366743473,1750427447773,-460.0,0.00021363,2]
[366743475,1750427447783,-486.53565264,0.00021363,2]
[366743477,1750427447793,-151.917456,0.00021363,2]
[366743479,1750427447803,-283.10620056,0.00021363,2]
[366743480,1750427447813,-151.0,0.00021363,2]
[366743482,1750427447823,-460.0,0.00021363,2]
[366743484,1750427447835,-460.0,0.00021363,2]
[366743486,1750427447844,-151.0,0.00021363,2]
[366743488,1750427447854,-152.508771,0.00021363,2]
[366743490,1750427447864,-460.0,0.00021363,2]
[366743492,1750427447875,-460.0,0.00021363,2]
[366743494,1750427447885,-460.0,0.00021363,2]
[366743496,1750427447894,-460.0,0.00021363,2]
[366743498,1750427447904,-460.0,0.00021363,2]
[366743499,1750427447914,-460.0,0.00021363,2]
[366743501,1750427447923,-485.22,0.00021363,2]
[366743503,1750427447933,-460.0,0.00021363,2]
[366743505,1750427447944,-524.7,0.00021363,2]
[366743507,1750427447954,-460.0,0.00021363,2]
[366743509,1750427447964,-460.0,0.00021363,2]
[366743511,1750427447974,-410.0,0.00021363,2]
[366743513,1750427447984,-460.0,0.00021363,2]
[366743515,1750427447995,-164.48735856,0.00021363,2]
[366743517,1750427448004,-460.0,0.00021363,2]
[366743519,1750427448014,-460.0,0.00021363,2]
[366743521,1750427448024,-2708.29,0.00021363,2]
[366743523,1750427448034,-901.59,0.00021363,2]
[366743525,1750427448044,-460.0,0.00021363,2]
[366743527,1750427448054,-712.98,0.00021363,2]
[366743529,1750427448064,-1660.52,0.00021363,2]
[366743531,1750427448075,-463.34,0.00021363,2]
[366743532,1750427448087,-559.54,0.00021363,2]
[366743534,1750427448098,-1371.39,0.00021363,2]
[366743536,1750427448108,-581.38,0.00021363,2]
[366743537,1750427448118,-460.0,0.00021363,2]
[366743539,1750427448128,-525.7,0.00021363,2]
[366743541,1750427448139,-581.88,0.00021363,2]
[366743543,1750427448149,-460.0,0.00021363,2]
[366743545,1750427448165,-460.0,0.00021363,2]
[366743547,1750427448175,-1289.87,0.00021363,2]
[366743549,1750427448185,-546.99,0.00021363,2]
[366743550,1750427448195,-460.0,0.00021363,2]
[366743553,1750427448207,-460.0,0.00021363,2]
[366743554,1750427448218,-460.0,0.00021363,2]
[366743556,1750427448229,-460.0,0.00021363,2]
[366743558,1750427448240,-1352.25,0.00021363,2]
[366743560,1750427448249,-460.0,0.00021363,2]
[366743561,1750427448260,-879.89,0.00021363,2]
[366743563,1750427448271,-460.0,0.00021363,2]
[366743564,1750427448282,-460.0,0.00021363,2]
[366743566,1750427448292,-3178.91,0.00021363,2]
[366743568,1750427448303,-460.0,0.00021363,2]
[366743570,1750427448313,-1018.97,0.00021363,2]
[366743572,1750427448323,-460.0,0.00021363,2]
[366743574,1750427448335,-460.0,0.00021363,2]
[366743576,1750427448345,-460.0,0.00021364,2]
[366743578,1750427448356,-977.92,0.00021364,2]
[366743579,1750427448366,-1220.1,0.00021364,2]
[366743581,1750427448376,-4050.29,0.00021364,2]
[366743583,1750427448386,-549.05,0.00021364,2]
[366743585,1750427448396,-461.37,0.00021364,2]
[366743587,1750427448407,-1355.77,0.00021364,2]
[366743589,1750427448418,-460.0,0.00021364,2]
[366743591,1750427448428,-695.98,0.00021364,2]
[366743593,1750427448438,-460.0,0.00021364,2]
[366743595,1750427448450,-460.0,0.00021364,2]
[366743597,1750427448459,-534.83,0.00021364,2]
[366743599,1750427448470,-474.25,0.00021364,2]
[366743601,1750427448480,-988.61,0.00021364,2]
[366743603,1750427448491,-460.0,0.00021364,2]
[366743604,1750427448501,-557.66,0.00021364,2]
[366743606,1750427448512,-460.0,0.00021364,2]
[366743608,1750427448523,-1100.94,0.00021364,2]
[366743610,1750427448533,-460.0,0.00021364,2]
[366743612,1750427448543,-460.0,0.00021364,2]
[366743614,1750427448554,-150.42545505,0.00021364,2]
[366743616,1750427448564,-460.0,0.00021365,2]
[366743618,1750427448575,-460.0,0.00021365,2]
[366743620,1750427448585,-1106.95,0.00021365,2]
[366743622,1750427448597,-460.0,0.00021365,2]
[366743624,1750427448608,-921.3,0.00021365,2]
[366743626,1750427448619,-460.0,0.00021365,2]
[366743628,1750427448629,-151.0,0.00021366,2]
[366743630,1750427448640,-460.0,0.00021366,2]
[366743631,1750427448650,-151.0,0.00021366,2]
[366743633,1750427448661,-293.13640131,0.00021366,2]
[366743635,1750427448671,-460.0,0.00021366,2]
[366743637,1750427448682,-460.0,0.00021366,2]
[366743638,1750427448692,-460.0,0.00021366,2]
[366743640,1750427448702,-460.0,0.00021366,2]
[366743642,1750427448713,-460.0,0.00021366,2]
[366743644,1750427448723,-309.69533732,0.00021366,2]
[366743646,1750427448733,-460.0,0.00021366,2]
[366743647,1750427448743,-384.58060037,0.00021366,2]
[366743649,1750427448754,-500.0,0.00021366,2]
[366743651,1750427448765,-460.0,0.00021367,2]
[366743653,1750427448776,-460.0,0.00021367,2]
[366743655,1750427448787,-460.0,0.00021367,2]
[366743657,1750427448797,-460.0,0.00021367,2]
[366743659,1750427448806,-460.0,0.00021367,2]
[366743660,1750427448816,-460.0,0.00021367,2]
[366743662,1750427448826,-267.89496814,0.00021367,2]
[366743664,1750427448837,-460.0,0.00021367,2]
[366743666,1750427448847,-460.0,0.00021367,2]
[366743668,1750427448859,-460.0,0.00021367,2]
[366743670,1750427448869,-460.0,0.00021367,2]
[366743672,1750427448879,-460.0,0.00021367,2]
[366743674,1750427448889,-151.0,0.00021382,2]
[366743675,1750427448900,-151.0,0.00021382,2]
[366743677,1750427448911,-165.179298,0.00021383,2]
[366743679,1750427448921,-151.578217,0.00021383,2]
[366743681,1750427448933,-151.0,0.00021384,2]
[366743683,1750427448943,-151.0,0.00021384,2]
[366743685,1750427448955,-151.0,0.00021384,2]
[366743687,1750427448965,-291.129484,0.00021384,2]
[366743689,1750427448976,-291.129484,0.00021384,2]
[366743691,1750427448986,-151.0,0.00021384,2]
[366743693,1750427448998,-378.478759,0.00021384,2]
[366743695,1750427449008,-378.478759,0.00021384,2]
[366743697,1750427449019,-151.0,0.00021384,2]
[366743699,1750427449030,-151.0,0.00021384,2]
[366743701,1750427449040,-151.0,0.00021384,2]
[366743703,1750427449051,-151.0,0.00021384,2]
[366743705,1750427449062,-151.0,0.00021394,2]
[366743707,1750427449072,-151.0,0.00021394,2]
[366743709,1750427449084,-151.0,0.00021394,2]
[366743710,1750427449095,-177.856565,0.00021394,2]
[366743712,1750427449105,-177.856565,0.00021394,2]
[366743714,1750427449117,-594.56,0.000214,2]
[366743716,1750427449129,-214.771463,0.000214,2]
[366743718,1750427449139,-151.0,0.000214,2]
[366743720,1750427449150,-162.821446,0.000214,2]
[366743722,1750427449166,-162.821446,0.000214,2]
[366743724,1750427449178,-2579.59430635,0.000214,5]
[366743726,1750427449188,-2579.59430607,0.000214,5]
[366743727,1750427449199,-2579.59430607,0.000214,5]
[366743729,1750427449210,-151.0,0.00021417,2]
[366743731,1750427449220,-151.0,0.00021417,2]
[366743733,1750427449231,-151.0,0.00021417,2]
[366743735,1750427449243,-305.395772,0.00021417,2]
[366743737,1750427449254,-305.395772,0.00021417,2]
[366743739,1750427449265,-2579.59430607,0.00021417,5]
[366743741,1750427449275,-1000.0,0.00021421,2]
[366743743,1750427449286,-151.0,0.00021421,2]
[366743745,1750427449297,-317.95,0.00021421,2]
[366743746,1750427449308,-317.95,0.00021421,2]
[366743748,1750427449319,-1448.228023,0.00021421,2]
[366743750,1750427449330,-1448.228023,0.00021421,2]
[366743752,1750427449341,-160.0,0.00021494,3]
[366743754,1750427449352,-1089.0,0.00021513,2]
[366743756,1750427449363,-943.420164,0.0002156,4]
[366743758,1750427449375,-507.11601348,0.00021575,2]
[366743760,1750427449387,-500.0,0.00021575,2]
[366743762,1750427449397,-2579.59430607,0.0002159,5]
[366743764,1750427449407,-1017.85977493,0.00021621,2]
[366743765,1750427449417,-508.50743687,0.00021621,2]